bitfinex/quotes_BTCUSD_20240607
["timestamp","ask_amount","ask_price","bid_price","bid_amount"]
[1717726545615,5.13749956,70850.0,70849.0,7.81985228]
[1717726545839,5.36626828,70850.0,70849.0,7.80485228]
[1717726546050,5.13749956,70850.0,70849.0,7.80221718]
[1717726546263,5.33326828,70850.0,70849.0,7.80221718]
[1717726546685,5.10207938,70850.0,70849.0,7.74465491]
[1717726546908,5.34977938,70850.0,70849.0,7.74465491]
[1717726547114,5.15401066,70850.0,70849.0,7.74465491]
[1717726547679,5.34977938,70850.0,70849.0,7.74465491]
[1717726548096,5.34977861,70850.0,70849.0,7.74465491]
[1717726548516,5.34977861,70850.0,70849.0,7.69865491]
[1717726548718,5.20130656,70850.0,70849.0,7.69865491]
[1717726549074,5.00553784,70850.0,70849.0,7.69865491]
[1717726549439,5.13430656,70850.0,70849.0,7.69865491]
[1717726549686,5.20130656,70850.0,70849.0,7.69865491]
[1717726549895,4.97220303,70850.0,70849.0,7.69865491]
[1717726550240,4.97239023,70850.0,70849.0,7.69865491]
[1717726550453,4.77662151,70850.0,70849.0,7.69865491]
[1717726550889,4.68311359,70850.0,70849.0,7.69865491]
[1717726551106,4.77662151,70850.0,70849.0,7.69865491]
[1717726551315,4.77662151,70850.0,70849.0,7.59464491]
[1717726551735,4.77662151,70850.0,70849.0,7.51864491]
[1717726552150,4.77662151,70850.0,70849.0,7.51166429]
[1717726552366,4.77662106,70850.0,70849.0,7.51166429]
[1717726552566,5.07238978,70850.0,70849.0,7.45796716]
[1717726553192,5.07239251,70850.0,70849.0,7.41296716]
[1717726553396,5.22922202,70850.0,70849.0,7.37000946]
[1717726553615,6.88589288,70850.0,70849.0,7.3620009]
[1717726553834,6.93337941,70850.0,70849.0,7.28887165]
[1717726554481,6.66747941,70850.0,70849.0,7.27061463]
[1717726554701,5.86444241,70850.0,70849.0,7.27061463]
[1717726554910,5.11062555,70850.0,70849.0,7.27061463]
[1717726555127,5.38413079,70850.0,70849.0,7.27061463]
[1717726556000,5.38413079,70850.0,70849.0,7.23839948]
[1717726556630,5.38413295,70850.0,70849.0,7.23839948]
[1717726556835,5.28732195,70850.0,70849.0,7.23839948]
[1717726557049,5.96013881,70850.0,70849.0,7.23839948]
[1717726557274,5.27332195,70850.0,70849.0,7.23839948]
[1717726557514,5.28732195,70850.0,70849.0,7.23839948]
[1717726557736,5.09155323,70850.0,70849.0,7.23839948]
[1717726558164,5.07755323,70850.0,70849.0,7.23839948]
[1717726558402,5.09155323,70850.0,70849.0,7.23839948]
[1717726559275,5.28732195,70850.0,70849.0,7.23839948]
[1717726559494,5.28423513,70850.0,70849.0,7.23839948]
[1717726559699,5.28589638,70850.0,70849.0,7.23839948]
[1717726560372,5.21596038,70850.0,70849.0,7.23839948]
[1717726560584,4.89793838,70850.0,70849.0,7.46929948]
[1717726560811,5.01215238,70850.0,70849.0,7.46929948]
[1717726561039,4.89777131,70850.0,70849.0,7.46929948]
[1717726561270,4.70200259,70850.0,70849.0,7.46929948]
[1717726561700,4.89777131,70850.0,70849.0,7.46929948]
[1717726562343,4.83077131,70850.0,70849.0,7.46929948]
[1717726562565,4.89777131,70850.0,70849.0,7.46929948]
[1717726562779,4.74031261,70850.0,70849.0,7.46929948]
[1717726564286,4.89932967,70850.0,70849.0,7.46929948]
[1717726565322,4.83232967,70850.0,70849.0,7.46929948]
[1717726565528,4.89932967,70850.0,70849.0,7.46929948]
[1717726565748,5.04821567,70850.0,70849.0,7.46929948]
[1717726566882,4.85679525,70850.0,70849.0,7.46929948]
[1717726567111,4.90367797,70850.0,70849.0,7.46929948]
[1717726567329,5.05256397,70850.0,70849.0,7.46929948]
[1717726568866,4.98556397,70850.0,70849.0,7.46929948]
[1717726569092,4.90367797,70850.0,70849.0,7.46929948]
[1717726570671,4.90367797,70850.0,70849.0,7.45329948]
[1717726571428,4.90400044,70850.0,70849.0,7.45329948]
[1717726572611,4.90856048,70850.0,70849.0,7.45329948]
[1717726573057,4.48115661,70850.0,70849.0,7.22239948]
[1717726573349,4.48115661,70850.0,70849.0,7.46389948]
[1717726573350,3.28056048,70850.0,70849.0,7.46389948]
[1717726573568,2.89827448,70850.0,70849.0,7.46389948]
[1717726573820,2.7375421,70850.0,70849.0,7.46389948]
[1717726574290,2.7235421,70850.0,70849.0,7.46389948]
[1717726574502,2.50894508,70850.0,70849.0,7.46389948]
[1717726574713,1.97665908,70850.0,70849.0,7.46389948]
[1717726574967,1.94816423,70850.0,70849.0,7.46389948]
[1717726575222,1.49597489,70850.0,70849.0,7.46389948]
[1717726575457,1.48197489,70850.0,70849.0,7.46389948]
[1717726575665,1.49597489,70850.0,70849.0,7.46389948]
[1717726576109,1.42139702,70850.0,70849.0,7.46389948]
[1717726576328,1.67814893,70850.0,70849.0,7.46389948]
[1717726576557,1.67814893,70850.0,70849.0,7.48389948]
[1717726576775,1.67814893,70850.0,70849.0,7.48813076]
[1717726576776,1.70114893,70850.0,70849.0,7.48813076]
[1717726577203,2.0688146,70850.0,70849.0,7.46389948]
[1717726578053,2.0548146,70850.0,70849.0,7.48389948]
[1717726578471,2.0688146,70850.0,70849.0,7.48389948]
[1717726578697,2.0688146,70850.0,70849.0,7.46389948]
[1717726579808,2.1358146,70850.0,70849.0,7.46389948]
[1717726581010,2.25108063,70850.0,70849.0,7.46389948]
[1717726582557,2.44684935,70850.0,70849.0,7.46389948]
[1717726582765,2.25108063,70850.0,70849.0,7.46389948]
[1717726583847,2.25113672,70850.0,70849.0,7.46389948]
[1717726585158,2.24451705,70850.0,70849.0,7.46389948]
[1717726585379,2.251062,70850.0,70849.0,7.46389948]
[1717726586498,2.13282166,70850.0,70849.0,7.46389948]
[1717726587170,1.71130742,70850.0,70849.0,7.46389948]
[1717726587597,1.39986545,70850.0,70849.0,7.46389948]
[1717726588216,1.68215145,70850.0,70849.0,7.46389948]
[1717726589500,2.1202216,70850.0,70849.0,7.46389948]
[1717726589720,1.99356623,70850.0,70849.0,7.46389948]
[1717726590418,2.06056623,70850.0,70849.0,7.46389948]
[1717726591459,1.9565489,70850.0,70849.0,7.46389948]
[1717726591734,1.55563245,70850.0,70849.0,7.46389948]
[1717726591967,1.9937026,70850.0,70849.0,7.46389948]
[1717726592412,2.0318224,70850.0,70849.0,7.46389948]
[1717726593261,1.9937026,70850.0,70849.0,7.46389948]
[1717726599257,2.18947132,70850.0,70849.0,7.46389948]
[1717726600205,1.9937026,70850.0,70849.0,7.46389948]
[1717726601065,2.18947132,70850.0,70849.0,7.46389948]
[1717726602091,1.4384745,70850.0,70849.0,7.46389948]
[1717726602284,2.10634055,70850.0,70849.0,7.30279948]
[1717726602484,2.74019822,70850.0,70849.0,7.30279948]
[1717726602889,2.74020053,70850.0,70849.0,7.30279948]
[1717726603264,2.59508266,70850.0,70849.0,7.30279948]
[1717726604275,2.65126263,70850.0,70849.0,7.30279948]
[1717726604450,2.57088498,70850.0,70849.0,7.30279948]
[1717726604670,2.6509819,70850.0,70849.0,7.30279948]
[1717726606639,2.6509819,70850.0,70849.0,7.22239948]
[1717726606850,3.03450426,70850.0,70849.0,7.22239948]
[1717726607279,2.93860788,70850.0,70849.0,7.22239948]
[1717726607711,3.03489716,70850.0,70849.0,7.22239948]
[1717726608136,2.89238905,70850.0,70849.0,7.22239948]
[1717726608956,2.82538905,70850.0,70849.0,7.22239948]
[1717726609160,2.89238905,70850.0,70849.0,7.22239948]
[1717726609997,2.69662033,70850.0,70849.0,7.22239948]
[1717726610440,2.89238905,70850.0,70849.0,7.22239948]
[1717726611301,2.69662033,70850.0,70849.0,7.22239948]
[1717726611737,2.89238905,70850.0,70849.0,7.22239948]
[1717726612560,1.96786993,70850.0,70849.0,7.22239948]
[1717726612802,2.89258941,70850.0,70849.0,7.22239948]
[1717726614947,3.01092046,70850.0,70849.0,7.22239948]
[1717726616039,2.74817081,70850.0,70849.0,7.22239948]
[1717726616261,2.71888153,70850.0,70849.0,7.22239948]
[1717726616473,2.81369404,70850.0,70849.0,7.22239948]
[1717726616683,3.00949446,70850.0,70849.0,7.22239948]
[1717726616895,3.00998477,70850.0,70849.0,7.22239948]
[1717726618400,3.01004857,70850.0,70849.0,7.22239948]
[1717726619901,2.91523606,70850.0,70849.0,7.22239948]
[1717726620366,3.01259745,70850.0,70849.0,7.22239948]
[1717726622964,3.08839745,70850.0,70849.0,7.22239948]
[1717726623185,3.24659745,70850.0,70849.0,7.22239948]
[1717726623401,3.45465633,70850.0,70849.0,7.22239948]
[1717726623633,3.55465633,70850.0,70849.0,7.22239948]
[1717726623842,3.49659745,70850.0,70849.0,7.22239948]
[1717726625460,3.48259745,70850.0,70849.0,7.22239948]
[1717726626154,2.84875337,70850.0,70849.0,7.22239948]
[1717726626339,3.46866151,70850.0,70849.0,7.22239948]
[1717726626588,3.41566151,70850.0,70849.0,7.22239948]
[1717726626807,3.32446151,70850.0,70849.0,7.22239948]
[1717726627018,3.33846151,70850.0,70849.0,7.22239948]
[1717726627228,3.45706468,70850.0,70849.0,7.22239948]
[1717726627861,3.45987948,70850.0,70849.0,7.22239948]
[1717726628073,3.47387948,70850.0,70849.0,7.22239948]
[1717726628293,3.45987948,70850.0,70849.0,7.22239948]
[1717726628725,3.47387948,70850.0,70849.0,7.22239948]
[1717726629487,3.45987948,70850.0,70849.0,7.22239948]
[1717726629910,3.47387948,70850.0,70849.0,7.22239948]
[1717726630586,3.45987948,70850.0,70849.0,7.22239948]
[1717726631010,3.47387948,70850.0,70849.0,7.22239948]
[1717726631189,3.26547631,70850.0,70849.0,7.22239948]
[1717726631944,3.19847631,70850.0,70849.0,7.22239948]
[1717726632137,3.26547631,70850.0,70849.0,7.22239948]
[1717726634409,3.16811492,70850.0,70849.0,7.22239948]
[1717726634540,3.33366583,70850.0,70849.0,7.22239948]
[1717726634740,3.30566583,70850.0,70849.0,7.22239948]
[1717726635237,3.31966583,70850.0,70849.0,7.22239948]
[1717726636345,3.33366583,70850.0,70849.0,7.22239948]
[1717726636555,3.56736583,70850.0,70849.0,7.22239948]
[1717726637655,3.21789711,70850.0,70849.0,7.22239948]
[1717726638865,3.42630028,70850.0,70849.0,7.22239948]
[1717726639066,3.622069,70850.0,70849.0,7.22239948]
[1717726639466,3.904355,70850.0,70849.0,7.22239948]
[1717726640654,3.70858628,70850.0,70849.0,7.22239948]
[1717726641455,3.904355,70850.0,70849.0,7.22239948]
[1717726641654,3.70858628,70850.0,70849.0,7.22239948]
[1717726642294,3.904355,70850.0,70849.0,7.22239948]
[1717726642503,3.50018311,70850.0,70849.0,7.22239948]
[1717726642719,3.69595183,70850.0,70849.0,7.22239948]
[1717726643639,3.50018311,70850.0,70849.0,7.22239948]
[1717726644053,3.69595183,70850.0,70849.0,7.22239948]
[1717726644714,3.50018311,70850.0,70849.0,7.22239948]
[1717726644925,3.69595183,70850.0,70849.0,7.22239948]
[1717726645348,2.74294349,70850.0,70849.0,7.22239948]
[1717726645588,3.61662782,70850.0,70849.0,7.22239948]
[1717726646213,3.69982782,70850.0,70849.0,7.22239948]
[1717726646663,4.17373382,70850.0,70849.0,2.14649092]
[1717726646905,6.71459871,70850.0,70849.0,1.91763083]
[1717726647122,8.02570151,70850.0,70849.0,1.65261058]
[1717726647341,8.59092937,70850.0,70849.0,1.64946188]
[1717726647565,6.59620237,70850.0,70849.0,1.64946188]
[1717726647810,6.37282351,70850.0,70849.0,1.64946188]
[1717726648023,7.12664037,70850.0,70849.0,1.64946188]
[1717726648248,7.34161629,70850.0,70849.0,1.64946188]
[1717726648469,7.35561676,70850.0,70849.0,1.64946188]
[1717726648879,7.12664037,70850.0,70849.0,1.64946188]
[1717726649132,7.11264037,70850.0,70849.0,1.64946188]
[1717726649349,6.65555761,70850.0,70849.0,1.64946188]
[1717726649595,5.90174075,70850.0,70849.0,1.64663469]
[1717726650029,5.88774075,70850.0,70849.0,1.64663469]
[1717726650253,5.67282351,70850.0,70849.0,1.64663469]
[1717726650471,5.71453383,70850.0,70849.0,1.64663469]
[1717726652259,5.71453383,70850.0,70849.0,1.6342162]
[1717726652703,5.71453383,70850.0,70849.0,1.62562267]
[1717726652937,5.81453383,70850.0,70849.0,1.59800193]
[1717726653585,5.71453383,70850.0,70849.0,1.57974068]
[1717726653801,5.71453383,70850.0,70849.0,1.56147943]
[1717726654636,5.71453383,70850.0,70849.0,1.53516175]
[1717726654851,5.71453383,70850.0,70849.0,1.48413768]
[1717726655068,5.81453383,70850.0,70849.0,1.48413768]
[1717726655288,5.71453383,70850.0,70849.0,1.48413768]
[1717726655521,5.71453383,70850.0,70849.0,1.43585317]
[1717726656004,5.71453383,70850.0,70849.0,1.41769934]
[1717726657960,5.71453383,70850.0,70849.0,1.39943835]
[1717726658550,6.47160929,70850.0,70849.0,1.39943835]
[1717726658974,5.71779243,70850.0,70849.0,1.39943835]
[1717726660911,5.63041883,70850.0,70849.0,1.39943835]
[1717726661166,5.70342602,70850.0,70849.0,1.39943835]
[1717726661623,6.11212602,70850.0,70849.0,1.39943835]
[1717726661835,6.86594288,70850.0,70849.0,1.39943835]
[1717726662500,6.67017416,70850.0,70849.0,1.39943835]
[1717726662717,6.67017416,70850.0,70849.0,1.37731171]
[1717726662941,6.11212602,70850.0,70849.0,1.37731171]
[1717726663145,6.96594288,70850.0,70849.0,1.37731171]
[1717726663972,6.46271393,70850.0,70849.0,1.37731171]
[1717726664187,6.96449966,70850.0,70849.0,1.37731171]
[1717726666092,6.86449966,70850.0,70849.0,1.37731171]
[1717726666964,6.86449966,70850.0,70849.0,1.37132172]
[1717726670171,6.86449966,70850.0,70849.0,1.36702475]
[1717726670825,6.61789966,70850.0,70849.0,1.36702475]
[1717726671023,5.8640828,70850.0,70849.0,1.36702475]
[1717726671521,5.8860639,70850.0,70849.0,1.36702475]
[1717726671965,4.94077539,70850.0,70849.0,1.36702475]
[1717726672207,5.89054662,70850.0,70849.0,1.36702475]
[1717726677182,5.89081487,70850.0,70849.0,1.36702475]
[1717726678510,5.86883377,70850.0,70849.0,1.36702475]
[1717726680348,5.80183377,70850.0,70849.0,1.36702475]
[1717726680567,6.04258757,70850.0,70849.0,1.59922475]
[1717726680787,5.47877071,70850.0,70849.0,1.59922475]
[1717726681222,5.39777071,70850.0,70849.0,1.59922475]
[1717726681429,5.59588858,70850.0,70849.0,1.59922475]
[1717726681668,5.71340577,70850.0,70849.0,1.59922475]
[1717726682121,5.58790777,70850.0,70849.0,1.59922475]
[1717726682364,6.34172463,70850.0,70849.0,1.59922475]
[1717726682800,5.58790777,70850.0,70849.0,1.59922475]
[1717726683012,5.58754265,70850.0,70849.0,1.59922475]
[1717726683457,5.60154265,70850.0,70849.0,1.59922475]
[1717726683728,5.60304058,70850.0,70849.0,1.59922475]
[1717726683982,5.56822057,70850.0,70849.0,1.59922475]
[1717726684220,5.69371857,70850.0,70849.0,1.59922475]
[1717726685532,5.69315127,70850.0,70849.0,1.59922475]
[1717726686856,5.69482441,70850.0,70849.0,1.59922475]
[1717726691637,6.44864127,70850.0,70849.0,1.59922475]
[1717726691896,5.43782441,70850.0,70849.0,1.36702475]
[1717726692103,4.67493382,70850.0,70849.0,1.60402475]
[1717726692312,4.20877839,70850.0,70849.0,1.60402475]
[1717726692536,3.62367939,70850.0,70849.0,1.60402475]
[1717726692749,3.60170296,70850.0,70849.0,1.60402475]
[1717726692973,4.36857068,70850.0,70849.0,1.60402475]
[1717726693197,4.72197925,70850.0,70849.0,1.60402475]
[1717726693411,4.15988025,70850.0,70849.0,1.60402475]
[1717726693628,4.17388025,70850.0,70849.0,1.60402475]
[1717726694045,4.15988025,70850.0,70849.0,1.60402475]
[1717726694306,3.96558955,70850.0,70849.0,1.60402475]
[1717726694721,3.97958955,70850.0,70849.0,1.60402475]
[1717726695392,4.56468855,70850.0,70849.0,1.60402475]
[1717726695620,3.83447168,70850.0,70849.0,1.60402475]
[1717726696242,3.52789456,70850.0,70849.0,1.60402475]
[1717726696692,3.72366328,70850.0,70849.0,1.60402475]
[1717726697119,3.52789456,70850.0,70849.0,1.60402475]
[1717726697326,3.86878115,70850.0,70849.0,1.60402475]
[1717726698855,3.86831547,70850.0,70849.0,1.60402475]
[1717726699503,2.95109692,70850.0,70849.0,1.60402475]
[1717726699716,3.67047751,70850.0,70849.0,1.60402475]
[1717726700341,3.86624623,70850.0,70849.0,1.60402475]
[1717726700575,4.45134522,70850.0,70849.0,1.60402475]
[1717726702930,4.45155622,70850.0,70849.0,1.60402475]
[1717726704443,4.47353119,70850.0,70849.0,1.60402475]
[1717726704652,4.27776247,70850.0,70849.0,1.60402475]
[1717726704855,3.69266347,70850.0,70849.0,1.60402475]
[1717726706341,3.88843219,70850.0,70849.0,1.60402475]
[1717726706772,3.79462584,70850.0,70849.0,1.60402475]
[1717726706955,3.88860949,70850.0,70849.0,1.60402475]
[1717726707432,3.69284077,70850.0,70849.0,1.60402475]
[1717726708279,3.6928333,70850.0,70849.0,1.60402475]
[1717726709288,3.68960348,70850.0,70849.0,1.60402475]
[1717726710570,3.8853722,70850.0,70849.0,1.60402475]
[1717726714641,3.68960348,70850.0,70849.0,1.60402475]
[1717726715054,3.8853722,70850.0,70849.0,1.60402475]
[1717726715952,3.88537225,70850.0,70849.0,1.60402475]
[1717726716553,4.480871,70850.0,70849.0,1.60402475]
[1717726717346,4.58674557,70850.0,70849.0,1.60402475]
[1717726718216,4.39097685,70850.0,70849.0,1.60402475]
[1717726718435,3.7954781,70850.0,70849.0,1.60402475]
[1717726719065,4.39097673,70850.0,70849.0,1.60402475]
[1717726719779,4.28510216,70850.0,70849.0,1.60402475]
[1717726720029,4.48087088,70850.0,70849.0,1.60402475]
[1717726720308,4.43660421,70850.0,70849.0,1.60402475]
[1717726720531,3.64533674,70850.0,70849.0,1.60402475]
[1717726721158,3.84110546,70850.0,70849.0,1.60402475]
[1717726721375,3.67294551,70850.0,70849.0,1.60402475]
[1717726721583,3.83560313,70850.0,70849.0,1.60402475]
[1717726722013,3.980721,70850.0,70849.0,1.60402475]
[1717726722239,4.57621975,70850.0,70849.0,1.60402475]
[1717726722676,4.38045103,70850.0,70849.0,1.60402475]
[1717726722882,3.78495228,70850.0,70849.0,1.60402475]
[1717726726610,3.50266628,70850.0,70849.0,1.60402475]
[1717726728302,3.50170433,70850.0,70849.0,1.60402475]
[1717726728518,3.35658646,70850.0,70849.0,1.60402475]
[1717726728734,3.95208521,70850.0,70849.0,1.60402475]
[1717726729362,3.35658646,70850.0,70849.0,1.60402475]
[1717726729819,3.3568017,70850.0,70849.0,1.60402475]
[1717726732464,2.75108372,70850.0,70849.0,1.60402475]
[1717726732664,2.55955345,70850.0,70849.0,1.60402475]
[1717726732870,2.53757848,70850.0,70849.0,1.60402475]
[1717726733219,2.52357848,70850.0,70849.0,1.60402475]
[1717726733449,2.45306103,70850.0,70849.0,1.60402475]
[1717726733638,2.47606103,70850.0,70849.0,1.60402475]
[1717726733841,2.45585261,70850.0,70849.0,1.60402475]
[1717726734150,2.40574877,70850.0,70849.0,1.60402475]
[1717726734829,2.40464616,70850.0,70849.0,1.60402475]
[1717726738429,3.02738773,70850.0,70849.0,1.36702475]
[1717726738639,3.09438773,70850.0,70849.0,1.36702475]
[1717726738853,3.43883978,70850.0,70849.0,1.36702475]
[1717726740259,3.3571329,70850.0,70849.0,1.36702475]
[1717726740455,3.96189575,70850.0,70849.0,1.36702475]
[1717726741278,3.76612703,70850.0,70849.0,1.36702475]
[1717726741448,3.16136418,70850.0,70849.0,1.36702475]
[1717726741857,2.53915739,70850.0,70849.0,1.36702475]
[1717726742064,3.29021148,70850.0,70849.0,1.36702475]
[1717726743494,3.35655557,70850.0,70849.0,1.36702475]
[1717726743754,3.29021148,70850.0,70849.0,1.36702475]
[1717726745559,3.28445581,70850.0,70849.0,1.36702475]
[1717726746689,3.28427915,70850.0,70849.0,1.36702475]
[1717726747948,3.0885094,70850.0,70849.0,1.36702475]
[1717726752500,3.28427812,70850.0,70849.0,1.36702475]
[1717726754304,3.0885094,70850.0,70849.0,1.36702475]
[1717726756766,3.28427812,70850.0,70849.0,1.36702475]
[1717726757149,3.42939599,70850.0,70849.0,1.36702475]
[1717726759221,3.42946776,70850.0,70849.0,1.36702475]
[1717726760868,2.68474067,70850.0,70849.0,1.36702475]
[1717726761073,3.57919385,70850.0,70849.0,1.36702475]
[1717726765321,3.5726489,70850.0,70849.0,1.36702475]
[1717726765510,3.57936856,70850.0,70849.0,1.36702475]
[1717726765762,3.64636856,70850.0,70849.0,1.36702475]
[1717726766804,3.64644189,70850.0,70849.0,1.36702475]
[1717726767575,3.49184189,70850.0,70849.0,1.36702475]
[1717726767785,3.42484189,70850.0,70849.0,1.36702475]
[1717726768667,3.42516416,70850.0,70849.0,1.36702475]
[1717726769111,3.4471381,70850.0,70849.0,1.36702475]
[1717726770529,4.05190184,70850.0,70849.0,1.36702475]
[1717726770745,3.44713899,70850.0,70849.0,1.36702475]
[1717726771096,3.42516505,70850.0,70849.0,1.36702475]
[1717726772175,3.44713899,70850.0,70849.0,1.36702475]
[1717726773856,3.44774376,70850.0,70849.0,1.36702475]
[1717726775749,2.69668404,70850.0,70849.0,1.36702475]
[1717726775953,3.44774381,70850.0,70849.0,1.36702475]
[1717726778636,3.44798158,70850.0,70849.0,1.36702475]
[1717726779288,3.6564284,70850.0,70849.0,1.36702475]
[1717726780349,3.44798158,70850.0,70849.0,1.36702475]
[1717726780814,3.65645923,70850.0,70849.0,1.36702475]
[1717726781247,3.44798158,70850.0,70849.0,1.36702475]
[1717726781895,3.52938158,70850.0,70849.0,1.36702475]
[1717726783867,3.59638158,70850.0,70849.0,1.36702475]
[1717726785191,2.79460312,70850.0,70849.0,1.36702475]
[1717726785412,3.52535007,70850.0,70849.0,1.36702475]
[1717726785630,3.59235007,70850.0,70849.0,1.36702475]
[1717726786924,3.52623175,70850.0,70849.0,1.36702475]
[1717726787141,3.57345455,70850.0,70849.0,1.36702475]
[1717726788836,4.11544055,70850.0,70849.0,1.36702475]
[1717726789052,4.80642353,70850.0,70849.0,1.36702475]
[1717726793651,4.80642353,70850.0,70849.0,1.35602303]
[1717726793938,4.80642353,70850.0,70849.0,1.35202303]
[1717726794578,5.12397961,70850.0,70849.0,1.17933903]
[1717726794774,5.22397961,70850.0,70849.0,1.17933903]
[1717726795398,5.20997961,70850.0,70849.0,1.17933903]
[1717726795768,5.19597961,70850.0,70849.0,1.17933903]
[1717726795976,5.10997961,70850.0,70849.0,1.17933903]
[1717726796192,5.12397961,70850.0,70849.0,1.10233903]
[1717726796620,5.22397961,70850.0,70849.0,1.10233903]
[1717726797257,5.22397961,70850.0,70849.0,1.05933903]
[1717726797674,5.22397961,70850.0,70849.0,1.05333903]
[1717726798448,5.12397961,70850.0,70849.0,1.05333903]
[1717726800561,5.22397961,70850.0,70849.0,1.05333903]
[1717726801206,5.50626561,70850.0,70849.0,0.85180903]
[1717726801425,5.91281361,70850.0,70849.0,0.76264303]
[1717726801637,5.91281361,70850.0,70849.0,0.74384274]
[1717726802086,6.0665837,70850.0,70849.0,0.74384274]
[1717726802308,6.75345082,70850.0,70849.0,0.69227621]
[1717726802536,6.01660976,70850.0,70849.0,0.69227621]
[1717726802755,6.04460976,70850.0,70849.0,0.69227621]
[1717726805349,5.94460976,70850.0,70849.0,0.69227621]
[1717726806204,6.66462851,70850.0,70849.0,0.69227621]
[1717726806416,6.04178745,70850.0,70849.0,0.69227621]
[1717726806628,6.04178745,70850.0,70849.0,0.61627621]
[1717726807888,6.04178745,70850.0,70849.0,0.61448836]
[1717726808023,6.02778745,70850.0,70849.0,0.61448836]
[1717726808235,5.86001736,70850.0,70849.0,0.61448836]
[1717726808462,6.0275453,70850.0,70849.0,0.61448836]
[1717726808701,6.0415453,70850.0,70849.0,0.61448836]
[1717726809239,2.17388172,70842.0,70841.0,3.5e-07]
[1717726809402,1.11929372,70834.0,70811.0,0.004]
[1717726809635,1.8697521,70834.0,70811.0,0.004]
[1717726809820,2.26142695,70834.0,70811.0,0.004]
[1717726810074,3.41311164,70834.0,70811.0,0.004]
[1717726811036,3.41311164,70834.0,70812.0,0.02]
[1717726811874,3.42711164,70834.0,70812.0,0.02]
[1717726812918,3.49764064,70834.0,70812.0,0.02]
[1717726814178,3.49764064,70834.0,70814.0,0.087]
[1717726814399,3.49764064,70834.0,70814.0,0.067]
[1717726815273,3.49764064,70834.0,70815.0,0.02]
[1717726815486,3.49764064,70834.0,70814.0,0.067]
[1717726815710,1.00166372,70832.0,70831.0,0.2384]
[1717726815929,2.18482621,70832.0,70831.0,0.2384]
[1717726816140,2.86832935,70832.0,70831.0,0.2384]
[1717726816839,2.98152714,70832.0,70831.0,0.2384]
[1717726817060,2.99552714,70832.0,70831.0,0.2384]
[1717726818806,3.03073237,70832.0,70831.0,0.2384]
[1717726820327,2.87071276,70832.0,70831.0,0.2384]
[1717726820549,3.048835,70832.0,70831.0,0.2384]
[1717726821663,2.78083804,70832.0,70831.0,0.2384]
[1717726821896,2.97660676,70832.0,70831.0,0.2384]
[1717726822317,2.86827316,70832.0,70831.0,0.2384]
[1717726822751,2.52738657,70832.0,70831.0,0.2384]
[1717726826653,2.24502857,70832.0,70831.0,0.2384]
[1717726826883,2.05057652,70832.0,70831.0,0.2384]
[1717726827095,2.05126312,70832.0,70831.0,0.2384]
[1717726827307,2.33362112,70832.0,70831.0,0.2384]
[1717726827792,2.3337296,70832.0,70831.0,0.2384]
[1717726830438,2.05130819,70832.0,70831.0,0.2384]
[1717726830666,1.64595019,70832.0,70831.0,0.32963128]
[1717726830869,1.19952775,70832.0,70831.0,0.3254]
[1717726831086,0.76327319,70832.0,70831.0,0.3254]
[1717726831546,0.76327319,70832.0,70831.0,0.2384]
[1717726831547,1.03986611,70832.0,70831.0,0.2384]
[1717726831765,1.39031951,70832.0,70831.0,0.2384]
[1717726831989,1.53543738,70832.0,70831.0,0.2384]
[1717726832201,1.63543738,70832.0,70831.0,0.2384]
[1717726832431,2.07169194,70832.0,70831.0,0.2384]
[1717726832655,1.94957407,70832.0,70831.0,0.2384]
[1717726832882,1.51331951,70832.0,70831.0,0.2384]
[1717726833087,1.52731951,70832.0,70831.0,0.2384]
[1717726833296,1.51331951,70832.0,70831.0,0.2384]
[1717726833507,1.67808041,70832.0,70831.0,0.2384]
[1717726833721,1.69208041,70832.0,70831.0,0.2384]
[1717726836663,1.69208041,70832.0,70831.0,0.23926]
[1717726836881,1.69211695,70832.0,70831.0,0.23926]
[1717726837307,1.98470215,70832.0,70831.0,0.23926]
[1717726837468,1.54928411,70832.0,70831.0,0.23926]
[1717726837671,1.5510847,70832.0,70831.0,0.23926]
[1717726839639,1.59423821,70832.0,70831.0,0.23926]
[1717726839933,1.60823821,70832.0,70831.0,0.23926]
[1717726840151,2.04368414,70832.0,70831.0,0.23926]
[1717726840351,2.02968414,70832.0,70831.0,0.23926]
[1717726840780,2.04368414,70832.0,70831.0,0.23926]
[1717726841280,1.98653063,70832.0,70831.0,0.23926]
[1717726841709,1.5510847,70832.0,70831.0,0.23926]
[1717726845424,1.52910738,70832.0,70831.0,0.23926]
[1717726846481,1.551085,70832.0,70831.0,0.23926]
[1717726847877,1.48124463,70832.0,70831.0,0.23926]
[1717726848094,1.54545806,70832.0,70831.0,0.23926]
[1717726848417,1.69057593,70832.0,70831.0,0.23926]
[1717726848635,2.12542222,70832.0,70831.0,0.23926]
[1717726849316,1.2609691,70832.0,70831.0,0.23926]
[1717726849523,2.12576468,70832.0,70831.0,0.23926]
[1717726849728,2.11176468,70832.0,70831.0,0.23926]
[1717726849883,2.12576468,70832.0,70831.0,0.23926]
[1717726850870,1.98064681,70832.0,70831.0,0.00486]
[1717726851283,0.523597,70822.0,70821.0,0.004]
[1717726851487,1.04140327,70822.0,70821.0,0.004]
[1717726851692,1.04799202,70822.0,70821.0,0.004]
[1717726851914,1.07099202,70822.0,70821.0,0.004]
[1717726852574,1.17099202,70822.0,70821.0,0.004]
[1717726853232,1.18199202,70822.0,70821.0,0.004]
[1717726853498,1.19299202,70822.0,70821.0,0.004]
[1717726854204,1.24309159,70822.0,70821.0,0.004]
[1717726854426,1.24309159,70822.0,70821.0,0.2331]
[1717726857678,1.31996426,70822.0,70821.0,0.004]
[1717726857911,1.23527007,70822.0,70821.0,0.2296]
[1717726858124,1.95265533,70822.0,70821.0,0.004]
[1717726858299,2.1729732,70822.0,70821.0,0.004]
[1717726858522,2.11975292,70822.0,70821.0,0.004]
[1717726859724,2.31552164,70822.0,70821.0,0.004]
[1717726859935,2.11975292,70822.0,70821.0,0.004]
[1717726863133,1.97007452,70822.0,70821.0,0.004]
[1717726863361,1.75591759,70822.0,70821.0,0.004]
[1717726863566,2.06895228,70822.0,70821.0,0.004]
[1717726864204,2.04695228,70822.0,70821.0,0.004]
[1717726864426,2.05995228,70822.0,70821.0,0.004]
[1717726864655,2.03797256,70822.0,70821.0,0.004]
[1717726865289,2.03702648,70822.0,70821.0,0.004]
[1717726865722,2.05002648,70822.0,70821.0,0.004]
[1717726866169,2.56562448,70822.0,70821.0,0.004]
[1717726866374,2.78798216,70822.0,70821.0,0.004]
[1717726866598,2.64512448,70822.0,70821.0,0.004]
[1717726867024,2.8408932,70822.0,70821.0,0.004]
[1717726868386,2.8408932,70822.0,70821.0,0.00486]
[1717726869258,2.64512448,70822.0,70821.0,0.00486]
[1717726869473,2.57812448,70822.0,70821.0,0.00486]
[1717726870777,2.41192448,70822.0,70821.0,0.00486]
[1717726871529,2.18730661,70822.0,70821.0,0.00486]
[1717726871848,2.33012006,70822.0,70821.0,0.29796]